fUST/lending_fUST_20250930
["ID","MTS","AMOUNT","RATE_DAILY","PERIOD"]
[388563944,1759243307228,-500.0,0.00021917,2]
[388563945,1759243307262,-973.16,0.00021917,2]
[388563946,1759243307297,-500.0,0.00021917,2]
[388563947,1759243307329,-500.0,0.00021917,2]
[388563948,1759243307361,-500.0,0.00021917,2]
[388563949,1759243307392,-495.60059629,0.00021917,2]
[388563950,1759243307423,-685.58,0.00021917,2]
[388563951,1759243307455,-3213.89,0.00021917,2]
[388563952,1759243307488,-500.0,0.00021917,2]
[388563953,1759243307531,-500.0,0.00021917,2]
[388563954,1759243307565,-3751.52,0.00021917,2]
[388563955,1759243307597,-617.08,0.00021917,2]
[388563956,1759243307630,-307.06146409,0.00021917,2]
[388563957,1759243307660,-1123.0,0.00021918,2]
[388563958,1759243307690,-151.0,0.00021918,2]
[388563959,1759243307722,-151.0,0.00021918,2]
[388563960,1759243307751,-155.223653,0.00021918,2]
[388563961,1759243307783,-371.642818,0.00021918,2]
[388563962,1759243307813,-371.642818,0.00021918,2]
[388563963,1759243307842,-371.642818,0.00021918,2]
[388563964,1759243307871,-371.642818,0.00021918,2]
[388563965,1759243307900,-371.642818,0.00021918,2]
[388563966,1759243307928,-371.642818,0.00021918,2]
[388563967,1759243307955,-371.642818,0.00021918,2]
[388563968,1759243307982,-371.642818,0.00021918,2]
[388563969,1759243308009,-371.642818,0.00021918,2]
[388563970,1759243308036,-371.642818,0.00021918,2]
[388563971,1759243308063,-371.642818,0.00021918,2]
[388563972,1759243308092,-371.642818,0.00021918,2]
[388563973,1759243308124,-371.642818,0.00021918,2]
[388563974,1759243308155,-371.642818,0.00021918,2]
[388563975,1759243308183,-371.642818,0.00021918,2]
[388563976,1759243308211,-371.642818,0.00021918,2]
[388563977,1759243308239,-371.642818,0.00021918,2]
[388563978,1759243308268,-371.642818,0.00021918,2]
[388563979,1759243308305,-371.642818,0.00021918,2]
[388563980,1759243308336,-371.642814,0.00021918,2]
[388563981,1759243308367,-162.0,0.00021933,2]
[388563982,1759243308398,-360.0,0.00021992,2]
[388563983,1759243308428,-605.85078569,0.00021992,2]
[388563984,1759243308458,-100070.71604656,0.00022,5]
[388563985,1759243308488,-6115.18,0.00022,2]
[388563986,1759243308518,-238.0,0.00022,2]
[388563987,1759243308553,-1500.0,0.00022012,2]
[388563988,1759243308587,-502.18387565,0.00022012,2]
[388563989,1759243308618,-800.0,0.00022027,2]
[388563990,1759243308767,-24174.66223287,0.00022061,2]
[388563991,1759243308801,-1502.05488592,0.00022068,2]
[388563992,1759243308838,-1000.0,0.00022079,2]
[388563993,1759243308873,-1000.0,0.00022079,2]
[388563994,1759243308909,-501.33069141,0.00022079,2]
[388563995,1759243308942,-1000.0,0.00022079,2]
[388563996,1759243308974,-1000.0,0.00022079,2]
[388563997,1759243309006,-158.78906835,0.00022079,2]
[388563998,1759243309039,-1000.0,0.00022079,2]
[388563999,1759243309070,-502.47491404,0.00022079,2]
[388564000,1759243309101,-1000.0,0.00022079,2]
[388564001,1759243309135,-1000.0,0.00022079,2]
[388564002,1759243309167,-1000.0,0.00022079,2]
[388564003,1759243309201,-772.85351119,0.00022079,2]
[388564004,1759243309234,-1000.0,0.00022079,2]
[388564005,1759243309268,-1000.0,0.00022079,2]
[388564006,1759243309304,-1000.0,0.00022079,2]
[388564007,1759243309338,-1000.0,0.00022079,2]
[388564008,1759243309372,-1000.0,0.00022079,2]
[388564009,1759243309406,-1000.0,0.00022079,2]
[388564010,1759243309439,-1000.0,0.00022079,2]
[388564011,1759243309473,-912.89144615,0.00022079,2]
[388564012,1759243309505,-597.55111984,0.00022079,2]
[388564013,1759243309539,-1000.0,0.00022079,2]
[388564014,1759243309573,-1000.0,0.00022079,2]
[388564015,1759243309605,-1000.0,0.00022079,2]
[388564016,1759243309638,-1000.0,0.00022079,2]
[388564017,1759243309672,-1000.0,0.00022079,2]
[388564018,1759243309709,-715.98111186,0.00022079,2]
[388564019,1759243309747,-1000.4554625,0.00022079,2]
[388564020,1759243309780,-501.75962247,0.00022079,2]
[388564021,1759243309817,-654.13407156,0.00022079,2]
[388564022,1759243309850,-1000.0,0.00022079,2]
[388564023,1759243309884,-1003.73806394,0.00022121,2]
[388564024,1759243309917,-1000.0,0.00022121,2]
[388564025,1759243309951,-1000.0,0.00022121,2]
[388564026,1759243309984,-1000.0,0.00022121,2]
[388564027,1759243310016,-1000.0,0.00022121,2]
[388564028,1759243310049,-322.83,0.00022156,2]
[388564029,1759243310082,-2500.0,0.00022164,2]
[388564030,1759243310117,-2500.0,0.00022164,2]
[388564031,1759243310151,-2500.0,0.00022164,2]
[388564032,1759243310184,-2500.0,0.00022164,2]
[388564033,1759243310217,-2500.0,0.00022164,2]
[388564034,1759243310251,-2500.0,0.00022164,2]
[388564035,1759243310286,-2500.0,0.00022164,2]
[388564036,1759243310320,-500.0,0.00022191,2]
[388564037,1759243310355,-500.0,0.00022191,2]
[388564038,1759243310388,-500.0,0.00022191,2]
[388564039,1759243310421,-500.0,0.00022191,2]
[388564040,1759243310454,-500.0,0.00022191,2]
[388564041,1759243310488,-320.68126506,0.00022191,2]
[388564042,1759243310522,-500.0,0.00022191,2]
[388564043,1759243310559,-500.0,0.00022191,2]
[388564044,1759243310594,-519.41,0.00022191,2]
[388564045,1759243310629,-500.0,0.00022191,2]
[388564046,1759243310665,-225.09524201,0.00022191,2]
[388564047,1759243310699,-3938.37,0.00022191,2]
[388564048,1759243310733,-772.65,0.00022191,2]
[388564049,1759243310767,-500.0,0.00022191,2]
[388564050,1759243310800,-500.0,0.00022191,2]
[388564051,1759243310837,-500.0,0.00022191,2]
[388564052,1759243310870,-500.0,0.00022191,2]
[388564053,1759243310906,-500.0,0.00022191,2]
[388564054,1759243310940,-614.53,0.00022191,2]
[388564055,1759243310974,-912.83,0.00022191,2]
[388564056,1759243311006,-636.66,0.00022191,2]
[388564057,1759243311038,-707.09,0.00022191,2]
[388564058,1759243311070,-500.0,0.00022191,2]
[388564059,1759243311103,-519.25,0.00022191,2]
[388564060,1759243311135,-623.93,0.00022191,2]
[388564061,1759243311168,-500.0,0.00022191,2]
[388564062,1759243311200,-500.0,0.00022191,2]
[388564063,1759243311234,-500.0,0.00022191,2]
[388564064,1759243311267,-500.0,0.00022191,2]
[388564065,1759243311302,-500.0,0.00022191,2]
[388564066,1759243311337,-973.16,0.00022191,2]
[388564067,1759243311370,-500.0,0.00022191,2]
[388564068,1759243311405,-500.0,0.00022191,2]
[388564069,1759243311437,-500.0,0.00022191,2]
[388564070,1759243311472,-685.58,0.00022191,2]
[388564071,1759243311507,-3213.89,0.00022191,2]
[388564072,1759243311540,-500.0,0.00022191,2]
[388564073,1759243311577,-500.0,0.00022191,2]
[388564074,1759243311611,-3751.52,0.00022191,2]
[388564075,1759243311645,-617.08,0.00022191,2]
[388564076,1759243311680,-1123.0,0.00022192,2]
[388564077,1759243311713,-626.36548557,0.0002222,2]
[388564078,1759243311745,-979.0,0.0002222,2]
[388564079,1759243311782,-630.0,0.0002222,2]
[388564080,1759243311820,-2156.0,0.0002222,2]
[388564081,1759243311855,-150.0,0.0002224,2]
[388564082,1759243311888,-150.0,0.0002224,2]
[388564083,1759243311921,-150.0,0.0002224,2]
[388564084,1759243311955,-150.0,0.0002224,2]
[388564085,1759243311987,-150.0,0.0002224,2]
[388564086,1759243312020,-150.0,0.0002224,2]
[388564087,1759243312054,-150.0,0.0002224,2]
[388564088,1759243312086,-189.44378083,0.00022242,2]
[388564089,1759243312119,-160.0,0.00022242,2]
[388564090,1759243312158,-233.92491258,0.00022242,2]
[388564091,1759243312191,-3000.0,0.00022312,2]
[388564092,1759243312223,-160.0,0.00022361,2]
[388564093,1759243312256,-160.0,0.00022365,2]
[388564094,1759243312417,-160.0,0.00022365,2]
[388564095,1759243312448,-500.0,0.00022465,2]
[388564096,1759243312481,-208.11203779,0.00022465,2]
[388564097,1759243312515,-500.0,0.00022465,2]
[388564098,1759243312549,-500.0,0.00022465,2]
[388564099,1759243312583,-500.0,0.00022465,2]
[388564100,1759243312617,-500.0,0.00022465,2]
[388564101,1759243312650,-500.0,0.00022465,2]
[388564102,1759243312683,-519.41,0.00022465,2]
[388564103,1759243312719,-500.0,0.00022465,2]
[388564104,1759243312752,-3938.37,0.00022465,2]
[388564105,1759243312785,-772.65,0.00022465,2]
[388564106,1759243312819,-500.0,0.00022465,2]
[388564107,1759243312855,-500.0,0.00022465,2]
[388564108,1759243312887,-500.0,0.00022465,2]
[388564109,1759243312920,-500.0,0.00022465,2]
[388564110,1759243312954,-500.0,0.00022465,2]
[388564111,1759243312988,-614.53,0.00022465,2]
[388564112,1759243313021,-912.83,0.00022465,2]
[388564113,1759243313056,-636.66,0.00022465,2]
[388564114,1759243313092,-707.09,0.00022465,2]
[388564115,1759243313128,-500.0,0.00022465,2]
[388564116,1759243313163,-519.25,0.00022465,2]
[388564117,1759243313197,-623.93,0.00022465,2]
[388564118,1759243313230,-257.03992019,0.00022465,2]
[388564119,1759243313263,-500.0,0.00022465,2]
[388564120,1759243313296,-500.0,0.00022465,2]
[388564121,1759243313328,-500.0,0.00022465,2]
[388564122,1759243313363,-500.0,0.00022465,2]
[388564123,1759243313395,-973.16,0.00022465,2]
[388564124,1759243313430,-500.0,0.00022465,2]
[388564125,1759243313467,-500.0,0.00022465,2]
[388564126,1759243313501,-500.0,0.00022465,2]
[388564127,1759243313538,-685.58,0.00022465,2]
[388564128,1759243313575,-3213.89,0.00022465,2]
[388564129,1759243313611,-164.55020255,0.00022465,2]
[388564130,1759243313647,-500.0,0.00022465,2]
[388564131,1759243313682,-3751.52,0.00022465,2]
[388564132,1759243313716,-617.08,0.00022465,2]
[388564133,1759243313751,-1123.0,0.00022466,2]
[388564134,1759243313785,-460.0,0.0002254,2]
[388564135,1759243313820,-2000.0,0.00022559,2]
[388564137,1759243313853,-1000.0,0.00022627,2]
[388564138,1759243313888,-1561.02850399,0.00022627,2]
[388564139,1759243313922,-1447.66140583,0.00022627,2]
[388564140,1759243313955,-1500.0,0.00022627,2]
[388564141,1759243313989,-316.89290031,0.00022627,2]
[388564142,1759243314022,-613.79958107,0.00022627,2]
[388564143,1759243314056,-1421.62780715,0.00022627,2]
[388564144,1759243314093,-1500.0,0.00022627,2]
[388564145,1759243314128,-1500.0,0.00022627,2]
[388564146,1759243314162,-1500.0,0.00022627,2]
[388564147,1759243314210,-505.3952695,0.00022627,2]
[388564148,1759243314247,-679.64445148,0.00022627,2]
[388564149,1759243314284,-1037.31025395,0.00022627,2]
[388564150,1759243314320,-1315.68569636,0.00022627,2]
[388564151,1759243314355,-1500.0,0.00022627,2]
[388564152,1759243314390,-1139.11593822,0.00022627,2]
[388564153,1759243314425,-1500.0,0.00022627,2]
[388564154,1759243314460,-1500.0,0.00022627,2]
[388564155,1759243314495,-1500.0,0.00022627,2]
[388564156,1759243314529,-1500.0,0.00022627,2]
[388564157,1759243314564,-602.98117502,0.00022627,2]
[388564158,1759243314599,-1500.0,0.00022668,2]
[388564159,1759243314636,-1401.77887952,0.00022668,2]
[388564160,1759243314671,-530.22288247,0.00022668,2]
[388564161,1759243314706,-794.91830015,0.00022668,2]
[388564162,1759243314741,-3000.0,0.00022712,2]
[388564163,1759243314776,-3000.0,0.00022712,2]
[388564164,1759243314815,-3000.0,0.00022712,2]
[388564165,1759243314850,-729.97546859,0.00022712,2]
[388564166,1759243314885,-3000.0,0.00022712,2]
[388564167,1759243314920,-3000.0,0.00022712,2]
[388564168,1759243314954,-3000.0,0.00022712,2]
[388564169,1759243314989,-3000.0,0.00022712,2]
[388564170,1759243315023,-500.0,0.00022739,2]
[388564171,1759243315059,-576.82262396,0.00022739,2]
[388564172,1759243315094,-500.0,0.00022739,2]
[388564173,1759243315130,-500.0,0.00022739,2]
[388564174,1759243315170,-500.0,0.00022739,2]
[388564175,1759243315207,-500.0,0.00022739,2]
[388564176,1759243315243,-519.41,0.00022739,2]
[388564177,1759243315279,-500.0,0.00022739,2]
[388564178,1759243315317,-3938.37,0.00022739,2]
[388564179,1759243315352,-772.65,0.00022739,2]
[388564180,1759243315388,-500.0,0.00022739,2]
[388564181,1759243315423,-500.0,0.00022739,2]
[388564182,1759243315461,-500.0,0.00022739,2]
[388564183,1759243315495,-500.0,0.00022739,2]
[388564184,1759243315531,-500.0,0.00022739,2]
[388564185,1759243315566,-614.53,0.00022739,2]
[388564186,1759243315603,-912.83,0.00022739,2]
[388564187,1759243315637,-636.66,0.00022739,2]
[388564188,1759243315672,-707.09,0.00022739,2]
[388564189,1759243315711,-500.0,0.00022739,2]
[388564190,1759243315746,-519.25,0.00022739,2]
[388564191,1759243315781,-623.93,0.00022739,2]
[388564192,1759243315819,-500.0,0.00022739,2]
[388564193,1759243315854,-314.35117175,0.00022739,2]
[388564194,1759243315889,-500.0,0.00022739,2]
[388564195,1759243315924,-500.0,0.00022739,2]
[388564196,1759243315959,-973.16,0.00022739,2]
[388564197,1759243315993,-500.0,0.00022739,2]
[388564198,1759243316029,-500.0,0.00022739,2]
[388564199,1759243316205,-531.39759606,0.00022739,2]
[388564200,1759243316240,-685.58,0.00022739,2]
[388564201,1759243316277,-3213.89,0.00022739,2]
[388564202,1759243316317,-500.0,0.00022739,2]
[388564203,1759243316351,-3751.52,0.00022739,2]
[388564204,1759243316386,-617.08,0.00022739,2]
[388564205,1759243316421,-1123.0,0.0002274,2]
[388564206,1759243316455,-3500.0,0.0002286,2]
[388564207,1759243316490,-153.0,0.00022939,2]
[388564208,1759243316527,-153.0,0.00022939,2]
[388564209,1759243316561,-150.0,0.00022973,2]
[388564210,1759243316598,-20052.95404311,0.00023,2]
[388564211,1759243318363,-179.69,0.00019178,2]
[388564212,1759243318400,-588.38,0.00019178,2]
[388564213,1759243318433,-500.0,0.00021531,2]
[388564214,1759243318467,-500.0,0.00021918,2]
[388564215,1759243318499,-1000.0,0.00022079,2]
[388564216,1759243318533,-500.0,0.00022192,2]
[388564217,1759243318567,-500.0,0.00022466,2]
[388564218,1759243318599,-1023.45665262,0.00022627,2]
[388564219,1759243318631,-937.06,0.00022729,10]
[388564220,1759243318663,-500.0,0.0002274,2]
[388564221,1759243318695,-198933.25527211,0.00023,2]
[388564222,1759243318728,-160.0,0.00023,2]
[388564223,1759243318760,-500.0,0.00023013,2]
[388564224,1759243318792,-500.0,0.00023013,2]
[388564225,1759243318824,-456.23941405,0.00023013,2]
[388564226,1759243318858,-500.0,0.00023013,2]
[388564227,1759243318891,-519.41,0.00023013,2]
[388564228,1759243318923,-500.0,0.00023013,2]
[388564229,1759243318956,-3938.37,0.00023013,2]
[388564230,1759243318987,-772.65,0.00023013,2]
[388564231,1759243319020,-500.0,0.00023013,2]
[388564232,1759243319053,-500.0,0.00023013,2]
[388564233,1759243319087,-500.0,0.00023013,2]
[388564234,1759243319119,-500.0,0.00023013,2]
[388564235,1759243319151,-500.0,0.00023013,2]
[388564236,1759243319185,-614.53,0.00023013,2]
[388564237,1759243319219,-912.83,0.00023013,2]
[388564238,1759243319252,-636.66,0.00023013,2]
[388564239,1759243319288,-707.09,0.00023013,2]
[388564240,1759243319324,-500.0,0.00023013,2]
[388564241,1759243319358,-519.25,0.00023013,2]
[388564242,1759243319391,-623.93,0.00023013,2]
[388564243,1759243319426,-500.0,0.00023013,2]
[388564244,1759243319461,-500.0,0.00023013,2]
[388564245,1759243319496,-973.16,0.00023013,2]
[388564246,1759243319531,-500.0,0.00023013,2]
[388564247,1759243319567,-630.87000009,0.00023013,2]
[388564248,1759243319602,-685.58,0.00023013,2]
[388564249,1759243319637,-3213.89,0.00023013,2]
[388564250,1759243319673,-500.0,0.00023013,2]
[388564251,1759243319707,-3751.52,0.00023013,2]
[388564252,1759243319742,-617.08,0.00023013,2]
[388564253,1759243319775,-500.0,0.00023014,2]
[388564254,1759243319813,-560.0,0.00023088,2]
[388564255,1759243319850,-1428.50053268,0.00023107,2]
[388564256,1759243319883,-2000.0,0.00023175,2]
[388564257,1759243319916,-2000.0,0.00023175,2]
[388564258,1759243319948,-199.91869345,0.00023175,2]
[388564259,1759243319981,-286.85131139,0.00023175,2]
[388564260,1759243320014,-2000.0,0.00023175,2]
[388564261,1759243320047,-2000.0,0.00023175,2]
[388564262,1759243320083,-2000.0,0.00023175,2]
[388564263,1759243320118,-2000.0,0.00023175,2]
[388564264,1759243320154,-1499.73519563,0.00023175,2]
[388564265,1759243320198,-2000.0,0.00023216,2]
[388564266,1759243320237,-3500.0,0.0002326,2]
[388564267,1759243320271,-1192.76099268,0.0002326,2]
[388564268,1759243320309,-3500.0,0.0002326,2]
[388564269,1759243320343,-3500.0,0.0002326,2]
[388564270,1759243320377,-2076.9478705,0.0002326,2]
[388564271,1759243320412,-3500.0,0.0002326,2]
[388564272,1759243320449,-3500.0,0.0002326,2]
[388564273,1759243320485,-160.0,0.00023275,3]
[388564274,1759243320521,-500.0,0.00023287,2]
[388564275,1759243320559,-500.0,0.00023287,2]
[388564276,1759243320594,-500.0,0.00023287,2]
[388564277,1759243320629,-519.41,0.00023287,2]
[388564278,1759243320671,-500.0,0.00023287,2]
[388564279,1759243320704,-3938.37,0.00023287,2]
[388564280,1759243320737,-772.65,0.00023287,2]
[388564281,1759243320770,-500.0,0.00023287,2]
[388564282,1759243320807,-591.32791924,0.00023287,2]
[388564283,1759243320845,-500.0,0.00023287,2]
[388564284,1759243320988,-500.0,0.00023287,2]
[388564285,1759243321020,-500.0,0.00023287,2]
[388564286,1759243321056,-614.53,0.00023287,2]
[388564287,1759243321088,-912.83,0.00023287,2]
[388564288,1759243321123,-636.66,0.00023287,2]
[388564289,1759243321155,-707.09,0.00023287,2]
[388564290,1759243321189,-500.0,0.00023287,2]
[388564291,1759243321223,-519.25,0.00023287,2]
[388564292,1759243321255,-1010.78144331,0.00023287,5]
[388564293,1759243321290,-623.93,0.00023287,2]
[388564294,1759243321324,-516.25055081,0.00023287,2]
[388564295,1759243321357,-500.0,0.00023287,2]
[388564296,1759243321390,-500.0,0.00023287,2]
[388564297,1759243321423,-973.16,0.00023287,2]
[388564298,1759243321456,-500.0,0.00023287,2]
[388564299,1759243321488,-685.58,0.00023287,2]
[388564300,1759243321524,-3213.89,0.00023287,2]
[388564301,1759243321559,-500.0,0.00023287,2]
[388564302,1759243321592,-3751.52,0.00023287,2]
[388564303,1759243321624,-617.08,0.00023287,2]
[388564304,1759243321656,-500.0,0.00023288,2]
[388564305,1759243321689,-6115.18,0.000233,2]
[388564306,1759243321722,-324.4507868,0.0002331,2]
[388564307,1759243321755,-593.422031,0.0002331,2]
[388564308,1759243321789,-1172.2663206,0.0002331,2]
[388564309,1759243321822,-4000.0,0.00023333,4]
[388564310,1759243321854,-821.91796991,0.00023397,2]
[388564311,1759243321887,-2230.03785777,0.00023408,2]
[388564312,1759243321920,-142274.24457072,0.00023433,2]
[388564313,1759243321953,-31839.41678901,0.00023433,2]
[388564314,1759243321985,-200.353792,0.00023433,7]
[388564315,1759243322017,-1000.0,0.000235,2]
[388564316,1759243322050,-300.0,0.00023521,2]
[388564317,1759243322083,-500.0,0.00023561,2]
[388564318,1759243322114,-500.0,0.00023561,2]
[388564319,1759243322147,-500.0,0.00023561,2]
[388564320,1759243322180,-519.41,0.00023561,2]
[388564321,1759243322213,-500.0,0.00023561,2]
[388564322,1759243322246,-3938.37,0.00023561,2]
[388564323,1759243322278,-772.65,0.00023561,2]
[388564324,1759243322312,-455.00212198,0.00023561,2]
[388564325,1759243322346,-500.0,0.00023561,2]
[388564326,1759243322379,-500.0,0.00023561,2]
[388564327,1759243322412,-500.0,0.00023561,2]
[388564328,1759243322447,-614.53,0.00023561,2]
[388564329,1759243322481,-912.83,0.00023561,2]
[388564330,1759243322514,-636.66,0.00023561,2]
[388564331,1759243322547,-707.09,0.00023561,2]
[388564332,1759243322581,-500.0,0.00023561,2]
[388564333,1759243322614,-519.25,0.00023561,2]
[388564334,1759243322646,-623.93,0.00023561,2]
[388564335,1759243322680,-500.0,0.00023561,2]
[388564336,1759243322713,-500.0,0.00023561,2]
[388564337,1759243322747,-973.16,0.00023561,2]
[388564338,1759243322780,-500.0,0.00023561,2]
[388564339,1759243322817,-685.58,0.00023561,2]
[388564340,1759243322851,-3213.89,0.00023561,2]
[388564341,1759243322888,-500.0,0.00023561,2]
[388564342,1759243322921,-3751.52,0.00023561,2]
[388564343,1759243322955,-617.08,0.00023561,2]
[388564344,1759243322988,-500.0,0.00023562,2]
[388564345,1759243323022,-1613.4287403,0.00023564,2]
[388564346,1759243323054,-410.0,0.00023588,2]
[388564347,1759243323087,-410.0,0.00023588,2]
[388564348,1759243323120,-660.0,0.00023636,2]
[388564349,1759243323155,-773.85279762,0.00023723,2]
[388564350,1759243323189,-1014.5307188,0.00023723,2]
[388564351,1759243323222,-2500.0,0.00023723,2]
[388564352,1759243323257,-1025.16921985,0.00023723,2]
[388564353,1759243323293,-2500.0,0.00023723,2]
[388564354,1759243323326,-1017.22216114,0.00023723,2]
[388564355,1759243323360,-2500.0,0.00023764,2]
[388564356,1759243323394,-160.0,0.00023801,4]
[388564357,1759243323429,-4000.0,0.00023808,2]
[388564358,1759243323464,-4000.0,0.00023808,2]
[388564359,1759243323499,-4000.0,0.00023808,2]
[388564360,1759243323533,-244.33351889,0.00023808,2]
[388564361,1759243323575,-4000.0,0.00023808,2]
[388564362,1759243323610,-500.0,0.00023835,2]
[388564363,1759243323645,-500.0,0.00023835,2]
[388564364,1759243323680,-500.0,0.00023835,2]
[388564365,1759243323714,-519.41,0.00023835,2]
[388564366,1759243323748,-500.0,0.00023835,2]
[388564367,1759243323783,-3938.37,0.00023835,2]
[388564368,1759243323824,-772.65,0.00023835,2]
[388564369,1759243323859,-500.0,0.00023835,2]
[388564370,1759243323895,-418.42025866,0.00023835,2]
[388564371,1759243323929,-500.0,0.00023835,2]
[388564372,1759243323964,-614.53,0.00023835,2]
[388564373,1759243324000,-912.83,0.00023835,2]
[388564374,1759243324035,-636.66,0.00023835,2]
[388564375,1759243324071,-707.09,0.00023835,2]
[388564376,1759243324105,-500.0,0.00023835,2]
[388564377,1759243324139,-519.25,0.00023835,2]
[388564378,1759243324175,-623.93,0.00023835,2]
[388564379,1759243324210,-500.0,0.00023835,2]
[388564380,1759243324244,-500.0,0.00023835,2]
[388564381,1759243324278,-973.16,0.00023835,2]
[388564382,1759243324315,-500.0,0.00023835,2]
[388564383,1759243324352,-685.58,0.00023835,2]
[388564384,1759243324399,-3213.89,0.00023835,2]
[388564385,1759243324436,-334.20895528,0.00023835,2]
[388564386,1759243324472,-3751.52,0.00023835,2]
[388564387,1759243324510,-617.08,0.00023835,2]
[388564388,1759243324652,-500.0,0.00023836,2]
[388564389,1759243324688,-400.0,0.000239,2]
[388564390,1759243324724,-8022.0,0.00024,2]
[388564391,1759243324759,-1000.0,0.00024,2]
[388564392,1759243324796,-2923.0,0.00024025,2]
[388564393,1759243324834,-450.0,0.00024068,2]
[388564394,1759243324870,-250.0,0.000241,2]
[388564395,1759243324907,-500.0,0.00024109,2]
[388564396,1759243324943,-500.0,0.00024109,2]
[388564397,1759243324979,-500.0,0.00024109,2]
[388564398,1759243325015,-519.41,0.00024109,2]
[388564399,1759243325051,-500.0,0.00024109,2]
[388564400,1759243325087,-3938.37,0.00024109,2]
[388564401,1759243325122,-772.65,0.00024109,2]
[388564402,1759243325158,-500.0,0.00024109,2]
[388564403,1759243325194,-500.0,0.00024109,2]
[388564404,1759243325230,-614.53,0.00024109,2]
[388564405,1759243325268,-912.83,0.00024109,2]
[388564406,1759243325304,-636.66,0.00024109,2]
[388564407,1759243325339,-707.09,0.00024109,2]
[388564408,1759243325373,-500.0,0.00024109,2]
[388564409,1759243325408,-519.25,0.00024109,2]
[388564410,1759243325445,-623.93,0.00024109,2]
[388564411,1759243325479,-200.0,0.00024109,2]
[388564412,1759243325513,-200.0,0.00024109,2]
[388564413,1759243325546,-200.0,0.00024109,2]
[388564414,1759243325580,-200.0,0.00024109,2]
[388564415,1759243325614,-200.0,0.00024109,2]
[388564416,1759243325648,-200.0,0.00024109,2]
[388564417,1759243325683,-200.0,0.00024109,2]
[388564418,1759243325717,-200.0,0.00024109,2]
[388564419,1759243325752,-200.0,0.00024109,2]
[388564420,1759243325788,-200.0,0.00024109,2]
[388564421,1759243325825,-200.0,0.00024109,2]
[388564422,1759243325860,-200.0,0.00024109,2]
[388564423,1759243325893,-200.0,0.00024109,2]
[388564424,1759243325927,-284.18728262,0.00024109,2]
[388564425,1759243325961,-500.0,0.00024109,2]
[388564426,1759243325995,-500.0,0.00024109,2]
[388564427,1759243326030,-973.16,0.00024109,2]
[388564428,1759243326067,-500.0,0.00024109,2]
[388564429,1759243326102,-685.58,0.00024109,2]
[388564430,1759243326137,-3213.89,0.00024109,2]
[388564431,1759243326171,-3751.52,0.00024109,2]
[388564432,1759243326207,-617.08,0.00024109,2]
[388564433,1759243326240,-500.0,0.0002411,2]
[388564434,1759243326273,-760.0,0.00024184,2]
[388564435,1759243326309,-24174.66223276,0.00024243,2]
[388564436,1759243326344,-3000.0,0.00024271,2]
[388564437,1759243326378,-780.36605207,0.00024271,2]
[388564438,1759243326412,-3000.0,0.00024312,2]
[388564439,1759243326446,-160.0,0.00024328,5]
[388564440,1759243326478,-4500.0,0.00024356,2]
[388564441,1759243326512,-4500.0,0.00024356,2]
[388564442,1759243326548,-4500.0,0.00024356,2]
[388564443,1759243326583,-4500.0,0.00024356,2]
[388564444,1759243326617,-500.0,0.00024383,2]